Workbook

Sheet INICIO
C18: Hoteles oficiales
C19: Official hotels

Sheet LISTADO
C4: LISTADO DE HOTELES
C6: HOTELS LIST
B8: 1 | C8: LA ESPERANZA | E8: 9 | F8: HOTEL STANCIA
B9: 2 | C9: MS CASTELLANA | E9: 10 | F9: HOTEL DANN CALI
B10: 3 | C10: HOTEL CALI PLAZA SPORTS | E10: 11 | F10: TORRES DE CALI PLAZA HOTEL
B11: 4 | C11: HOTEL IMBANACO | E11: 12 | F11: MS CIUDAD JARDÍN
B12: 5 | C12: MS CENTENARIO | E12: 13 | F12: FOUR POINT BY SHERATON
B13: 6 | C13: MS CHIPICHAPE | E13: 14 | F13: HOTEL MOVICH
B14: 7 | C14: METROPOLIS PLAZA | E14: 15 | F14: HOTEL DANN CARLTON CALI
B15: 8 | C15: HOTEL CALI PLAZA | E15: 16 | F15: HOTEL SPIWAK

Sheet DIVISAS (hidden)
C1: Inicio
C2: Idioma
C3: es-CO
C4: Contáctanos
C5: contac
C6: Mapa del Sitio
C7: Síguenos en
C8: contac
C9: Buscar
C10: Buscar
C11: Giros y Finanzas
C12: Nosotros
C14: Nuestra Compañía
C15: Estados Financieros
C16: Código de Buen Gobierno
C17: Código de Conducta
C18: Administración de Riesgos
C19: Encuesta Código País
C20: Bonos de la Compañía
C21: Línea de Transparencia
C22: Responsabilidad Social
C23: Productos y Servicios
C25: Giros / Western Union
C27: Pago de Giros Internacionales
C28: Envío de Giros Internacionales
C29: Giros VIGO
C30: Giros Nacionales
C31: Quick Pay / Pagos
C32: Quick Cash
C33: Ahorro e Inversión
C35: Cuenta Ahorra Fácil
C37: Tarjeta Débito
C38: Cuenta Ahorra Fácil Plus
C39: CDT´s
C41: Tasas
C42: Financiación
C44: Credioro
C45: Cupo de Crédito Rotativo
C46: Crédito para Vehículo
C47: Créditos para Colombianos en el Exterior
C48: Crédito de Libranza
C49: Tarjeta de Crédito LA 14
C50: Seguros
C52: Mi Pago Seguro
C53: Mi Familia Segura
C54: Seguro de Repatriación
C55: Compra y Venta de Divisas
C56: Recaudos
C57: Western Union
C59: Giros / Western Union
C61: Pago de Giros Internacionales
C62: Envío de Giros Internacionales
C63: Giros Nacionales
C64: Quick Pay / Pagos
C65: Quick Cash
C66: VIGO
C67: Nuestras Oficinas
C68: Colombianos en el Exterior
C70: Créditos para Colombianos en el Exterior
C71: Giros / Western Union
C73: Pago de Giros Internacionales
C74: Envío de Giros Internacionales
C75: Quick Pay/ Aportes a Colpensiones / Pagos
C76: Preguntas Frecuentes
C77: Envíos Online
C78: Zona de Pagos
C79: Estás en: Productos y ServiciosCompra y Venta de Divisas
C82: Puntos de Atención | D82: ¿Interesado en comprar o vender Dólares y Euros en efectivo?. En Giros y Finanzas C.F. S.A. te ofrecemos realizar tus negociaciones de compra y venta de divisas, de manera ágil, cómoda y segura; este servicio se encuentra disponible para divisas que provengan de actividades autorizadas por las disposiciones legales vigentes y que se puedan canalizar a través de la Compañía.
C84: Búsqueda de oficina por ciudad | D84: Beneficios
C86: Departamento: | D86: Tranquilidad de realizar tus transacciones en moneda extranjera con una entidad vigilada por la Superintendencia Financiera de Colombia.
D87: Soporte de tus transacciones frente a las autoridades aeroportuarias (declaración de cambio).
C88: Ciudad: | D88: Seguridad en cuanto a la legalidad y origen de las divisas, respaldada por el manejo de personal especializado.
D89: Servicio oportuno, disponibilidad de divisas a nivel nacional (más de 160 puntos de atención en todo el país).
D90: Para clientes institucionales, ofrecemos el servicio en sus instalaciones dependiendo del monto requerido y la ubicación de la empresa.
D91: Tasas de cambio competitivas.
C92: Si quiere conocer la oficina más cercana a tu ubicación, ingresa tu dirección:
C93: (Ej: calle 104 # 14 - 86 Bogotá ) debes incluir la ciudad
C95: Giros / Western Union | D95: Descripción | E95: Dolar | G95: Euro
D96: TRM | E96: Muestra un Alza | F96: 2496.99 | G96: Sufre una Baja | H96: 2800.75
C97: Pago de Giros Internacionales | D97: Compra | E97: Muestra un Alza | F97: 2250 | G97: Se mantiene | H97: 2450
C98: Envío de Giros Internacionales | D98: Venta | E98: Muestra un Alza | F98: 2350 | G98: Se mantiene | H98: 2550
C99: Giros VIGO | D99: *Las tasas de compra y venta de divisas, pueden variar según la ciudad.
C100: Giros Nacionales
C101: Quick Pay / Pagos | D101: Si deseas conocer más acerca de este producto
C102: Quick Cash
C104: Financiación
C106: Credioro
C107: Cupo de Crédito Rotativo
C108: Crédito para Vehículo
C109: Créditos para Colombianos en el Exterior
C110: Crédito de Libranza
C112: Ahorro e Inversión
C114: Cuenta Ahorra Fácil
C115: -Tarjeta Débito
C116: Cuenta Ahorra Fácil Plus
C117: CDT´s
C119: Tarjeta de Crédito LA 14
C121: Tarjeta de Crédito LA 14
C123: Seguros
C125: Mi Pago Seguro
C126: Mi Familia Segura
C127: Seguro de Repatriación
C129: Compra y Venta de Divisas
C131: Compra y Venta de Divisas
C133: Recaudos
C135: Recaudos
C137: Acerca de los certificados SSL
C138: Encuentra aquí información de interés
C140: Derechos del Consumidor Financiero
C141: Obligaciones de las Entidades Vigiladas
C142: Consecuencias del Incumplimiento
C144: Educación Financiera
C145: Tabla de Tarifas
C146: Defensor del Consumidor Financiero
C147: Superintendencia Financiera de Colombia
C149: Copyright (c) 2012 Giros y Finanzas Compañia de Financiamiento S.A

Sheet LA ESPERANZA
E2: HOTEL LA ESPERANZA
F3: http://www.hotelesperanzacali.com/
E4: VOLVER AL LISTADO
C6: ACOMODACIÓN
C7: TARIFA EN PESOS | F7: RATE IN USD | I7: RATE IN EUROS
B8: RATE PER PERSON | C8: DOBLE | D8: TRIPLE | E8: CUADRUPLE | F8: =DIVISAS!F96 -> 2496.99 | I8: =DIVISAS!H96 -> 2800.75
F9: SINGLE | G9: DOUBLE | H9: 3/4 | I9: SINGLE | J9: DOUBLE | K9: 3/4
B10: RATE WITH BREAKFAST | C10: 120000 | D10: 180000 | E10: 240000 | F10: =+_xlfn.CEILING.PRECISE((C10/F8),1) -> 49 | G10: =+_xlfn.CEILING.PRECISE((D10/F8),1) -> 73 | H10: =+_xlfn.CEILING.PRECISE((E10/F8),1) -> 97 | I10: =+_xlfn.CEILING.PRECISE((C10/I8),1) -> 43 | J10: =+_xlfn.CEILING.PRECISE((D10/I8),1) -> 65 | K10: =+_xlfn.CEILING.PRECISE((E10/I8),1) -> 86
B11: RATE WITH BREAKFAST AND DINNER | C11: 140000 | D11: 210000 | E11: 280000 | F11: =+_xlfn.CEILING.PRECISE((C11/F8),1) -> 57 | G11: =+_xlfn.CEILING.PRECISE((D11/F8),1) -> 85 | H11: =+_xlfn.CEILING.PRECISE((E11/F8),1) -> 113 | I11: =+_xlfn.CEILING.PRECISE((C11/I8),1) -> 50 | J11: =+_xlfn.CEILING.PRECISE((D11/I8),1) -> 75 | K11: =+_xlfn.CEILING.PRECISE((E11/I8),1) -> 100
B12: RATE WITH BREAKFAST, LUNCH AND DINNER | C12: 160000 | D12: 240000 | E12: 320000 | F12: =+_xlfn.CEILING.PRECISE((C12/F8),1) -> 65 | G12: =+_xlfn.CEILING.PRECISE((D12/F8),1) -> 97 | H12: =+_xlfn.CEILING.PRECISE((E12/F8),1) -> 129 | I12: =+_xlfn.CEILING.PRECISE((C12/I8),1) -> 58 | J12: =+_xlfn.CEILING.PRECISE((D12/I8),1) -> 86 | K12: =+_xlfn.CEILING.PRECISE((E12/I8),1) -> 115
B14: ESPECIFICACIONES | C14: SERVICIOS INCLUIDOS E LA TARIFA: • Alojamiento • Habitaciones con sistema inteligente e insonorizadas • Baño Turco • Aire Acondicionado • Ducha Agua caliente / fría • Ascensor • Mirador Solarium • Internet inalámbrico ilimitado • IVA – Seguro Hotelero • Parqueadero Privado • Cajilla de Seguridad
C15: POLITICAS DE CALIDAD 1. SOLICITUD DE RESERVAS: El cliente podrá solicitar la reserva ó modificaciones a los E-mail ó teléfonos. En todos los casos debe confirmar la reserva por escrito y queda pendiente que el funcionario del hotel confirme la disponibilidad. 2. PROCEDIMIENTO PARA CANCELACIÓN DE RESERVA: Para cancelar reservas se requiere de una comunicación escrita con antelación no inferior a 24 horas antes de la llegada del huésped. 3. POLÍTICAS PARA EL CHECK IN Y CHECK OUT: El Check In 3:00 PM o Ingreso al Hotel y Check Out o salida del Hotel, se registra a las 2:00 PM. 4. LATE CHECK OUT (Después de la hora de Check Out): Para su autorización, es necesario informar previamente en recepción; de lo contrario, se cobrará el día completo. CONTINUA EN LA SIGUIENTE PÁGINA
B19: ESPECIFICACIONES | C19: POLITICAS DE CALIDAD 5. POLÍTICAS DE NO SHOW: El No Show implica, la no presentación al hotel, cuando se ha solicitado una reserva con anticipación. En este caso, deberá cancelar el 100% del valor de la primera noche. El hotel conserva la reserva hasta las 6:00 PM., pasado este tiempo, si requiere reactivarla, deberá solicitarla nuevamente y estará sujeta a la disponibilidad del hotel. 6. POLÍTICAS DE NO CHECK OUT: El No Check Out se entiende cuando un huésped no libera la habitación el día acordado. Para estos casos el huésped debe avisar con un día de antelación. De no hacerlo, su tarifa será recargada en un 10%. En caso contrario, si el huésped avisa con la debida anticipación, no se efectuará ningún recargo. 7. POLÍTICAS DE BLOQUEO Para hacer el bloqueo de habitaciones, se requiere de una Carta Garantía confirmando las reservas, nombre de huéspedes, número de habitaciones, tipo de habitación, acomodación, fechas y horas de llegada y salida. También es importante que informe que gastos le cubre. 8. FORMAS DE PAGO:: Efectivo en pesos Colombianos y en dólares, Tarjeta de Crédito, Cheque empresarial 9. POLITICAS DE CREDITO: El cupo de crédito se asigna de acuerdo con previo estudio y aprobación; para la primera compra, no se otorga crédito, por tanto su pago debe ser de contado. 10. POLITICA COBRO POR MORA: Si el crédito es aprobado nos comprometemos a pagar todos los cargos que se hagan contra nuestra cuenta en un plazo no mayor a 30 días, contamos a partir de la fecha del consumo(s); vencido este plazo, pagaremos intereses de mora a la tasa.

Sheet MS CASTELLANA
E2: HOTEL MS. CASTELLANA
E3: http://www.hotelesms.com/es/hoteles/cali/hotel-ms-castellana-cali-sur
E4: VOLVER AL LISTADO
C6: ACOMODACIÓN
C7: TARIFA EN PESOS | F7: RATE IN USD | I7: RATE IN EUROS
B8: RATE PER PERSON | C8: SENCILLA | D8: DOBLE | E8: TRIPLE Ó CUADRUPLE | F8: =DIVISAS!F96 -> 2496.99 | I8: =DIVISAS!H96 -> 2800.75
F9: SINGLE | G9: DOUBLE | H9: 3/4 | I9: SINGLE | J9: DOUBLE | K9: 3/4
B10: RATE WITH BREAKFAST | C10: 100000 | D10: 130000 | E10: 179920 | F10: =+_xlfn.CEILING.PRECISE((C10/F8),1) -> 41 | G10: =+_xlfn.CEILING.PRECISE((D10/F8),1) -> 53 | H10: =+_xlfn.CEILING.PRECISE((E10/F8),1) -> 73 | I10: =+_xlfn.CEILING.PRECISE((C10/I8),1) -> 36 | J10: =+_xlfn.CEILING.PRECISE((D10/I8),1) -> 47 | K10: =+_xlfn.CEILING.PRECISE((E10/I8),1) -> 65
B11: RATE WITH BREAKFAST, LUNCH AND DINNER | C11: 110000 | D11: 160000 | E11: 225000 | F11: =+_xlfn.CEILING.PRECISE((C11/F8),1) -> 45 | G11: =+_xlfn.CEILING.PRECISE((E10/F8),1) -> 73 | H11: =+_xlfn.CEILING.PRECISE((E11/F8),1) -> 91 | I11: =+_xlfn.CEILING.PRECISE((C11/I8),1) -> 40 | J11: =+_xlfn.CEILING.PRECISE((D11/I8),1) -> 58 | K11: =+_xlfn.CEILING.PRECISE((E11/I8),1) -> 81
B13: ESPECIFICACIONES | C13: HABITACIONES DISPONIBLES PARA EL EVENTO: 10 habitaciones dobles, 10 habitaciones triples y 1 habitación sencilla.
C14: Servicios Incluidos en Tarifa: • Alojamiento en cómodas habitaciones. • Iva del 16% de alojamiento. • Seguro hotelero por persona de $7.000. • Dependiendo de la tarifa escogida conexión a Internet Wifi, banda ancha y parqueadero. | G14: Servicios NO incluidos en la tarifa: • Mini- bar • Llamadas telefónicas nacionales e internacionales. • Lavandería • Servicios no especificados en la tarifa.
C15: FORMA DE PAGO: Para la confirmación de la reserva, se requiere el 50% con veinte días de anticipación a la reserva y el otro 50% tres días antes de la llegada del grupo. Los bancos para la realización de consignaciones son: DAVIVIENDA: Cuernta corriente N°. 015969999745 - HOTELES MS SAS. BANCOLOMBIA: Cuernta corriente N°. 82954707400 - HOTELES MS SAS.

Sheet HOTEL CALI PLAZA SPORTS
E2: HOTEL CALI PLAZA SPORTS
G3: http://caliplaza.com/hotel-cali-plaza-sports/
E4: VOLVER AL LISTADO
C6: ACOMODACIÓN
C7: TARIFA EN PESOS | F7: TARIFA EN DOLARES | I7: TARIFA EN EUROS
B8: TARIFA POR PERSONA | C8: SENCILLA | D8: DOBLE | E8: TRIPLE Ó CUADRUPLE | F8: =DIVISAS!F96 -> 2496.99 | I8: =DIVISAS!H96 -> 2800.75
F9: SENCILLA | G9: DOBLE | H9: TRIPLE Ó CUADRUPLE | I9: SENCILLA | J9: DOBLE | K9: TRIPLE Ó CUADRUPLE
B10: RATE WITH BREAKFAST | C10: 110000 | D10: 130000 | E10: 175000 | F10: =+_xlfn.CEILING.PRECISE((C10/F8),1) -> 45 | G10: =+_xlfn.CEILING.PRECISE((D10/F8),1) -> 53 | H10: =+_xlfn.CEILING.PRECISE((E10/F8),1) -> 71 | I10: =+_xlfn.CEILING.PRECISE((C10/I8),1) -> 40 | J10: =+_xlfn.CEILING.PRECISE((D10/I8),1) -> 47 | K10: =+_xlfn.CEILING.PRECISE((E10/I8),1) -> 63
B11: RATE WITH BREAKFAST AND DINNER | C11: 120000 | D11: 150000 | E11: 195000 | F11: =+_xlfn.CEILING.PRECISE((C11/F8),1) -> 49 | G11: =+_xlfn.CEILING.PRECISE((D11/F8),1) -> 61 | H11: =+_xlfn.CEILING.PRECISE((E11/F8),1) -> 79 | I11: =+_xlfn.CEILING.PRECISE((C11/I8),1) -> 43 | J11: =+_xlfn.CEILING.PRECISE((D11/I8),1) -> 54 | K11: =+_xlfn.CEILING.PRECISE((E11/I8),1) -> 70
B12: RATE WITH BREAKFAST, LUNCH AND DINNER | C12: 130000 | D12: 170000 | E12: 225000 | F12: =+_xlfn.CEILING.PRECISE((C12/F8),1) -> 53 | G12: =+_xlfn.CEILING.PRECISE((D12/F8),1) -> 69 | H12: =+_xlfn.CEILING.PRECISE((E12/F8),1) -> 91 | I12: =+_xlfn.CEILING.PRECISE((C12/I8),1) -> 47 | J12: =+_xlfn.CEILING.PRECISE((D12/I8),1) -> 61 | K12: =+_xlfn.CEILING.PRECISE((E12/I8),1) -> 81
B14: ESPECIFICACIONES | C14: SERVICIOS INCLUIDOS E LA TARIFA: Iva del 16%; seguro hotelero, internet cableado y WI-FI, llamadas telefónicas locales ilimitadas, zona húmedas (turco y jacuzzi), emergencias médicas, parqueadero. LAS TARIFAS NO INCLUYEN OTROS SERVICIOS NO ESPECIFICADOS
C15: El Hotel Cali Plaza ofrece: • 23 habitaciones: 10 tipo estándar y 13 superior, amplias y elegantes que invitan al descanso. • Lencería de lujo de 250 hilos. • Amenities para el cuidado personal. • Conexión Wi Fi de alta velocidad gratuita. • Escritorio con lámpara de lectura. • Aire acondicionado tipo Mini Split. • Televisión por cable con LCD de 42.” • Cajilla de seguridad electrónica. • Cerradura de acceso inteligente. • Minibar • Lavandería. • Salón para reuniones sociales y empresariales hasta 80 personas, equipado con ayudas audiovisuales • Llamadas telefónicas locales ilimitadas • Circuito cerrado de televisión. • Parqueadero gratuito • Terraza cafetería. • Zona húmeda: jacuzzi – turco. - Igualmente se informa que no se generara pago de comisión por las reservas realizadas en los portales. - El valor del dólar estará sujeto a la TRM. Las habitaciones ofrecidas están sujetas a la disponibilidad que presente el hotel en el momento de solicitar la reserva. Las reservaciones podrán ser solicitadas por vía telefónica o email y deberán ser reconfirmadas por escrito informándonos el nombre y apellidos de cliente, fecha de llegada y salida, nombre completo persona con número de contacto de quien hace la reserva. Las reservaciones pueden ser canceladas en efectivo (pesos Colombianos); tarjeta débito, crédito, visa, master card, american express. Con el fin de garantizar las habitaciones, deberán realizar un anticipo por el valor de la primera noche del total de las habitaciones reservadas, con dos (15) días de anterioridad y para cancelar o modificar el número de habitaciones deberán hacerse con (8) días previos a la llegada. Toda reserva se conservara hasta las 12 de la noche del día de la llegada. Si el cliente no se presenta en la fecha prevista se considerara como No Show y deberá pagar al hotel el valor total a la primera noche. Disponemos de un salón para eventos sociales y reuniones empresariales con capacidad hasta 80 personas, equipado con ayudas audiovisuales y con la opción adicional de servicio de alimentos y bebidas: refrigerios almuerzos y cenas.

Sheet HOTEL IMBANACO
D2: HOTEL IMBANACO
A3: http://www.hotelimbanacocali.com/
D4: VOLVER AL LISTADO
C6: ACOMODACIÓN
C7: TARIFA EN PESOS | D7: RATE IN USD | E7: RATE IN EUROS
B8: TARIFA POR PERSONA | C8: MÚLTIPLE | D8: =DIVISAS!F96 -> 2496.99 | E8: =DIVISAS!H96 -> 2800.75
D9: MÚLTIPLE | E9: MÚLTIPLE
B10: ALOJAMIENTO SIN ALIMENTACIÓN Y SIN IMPUESTOS | C10: 50000 | D10: =+_xlfn.CEILING.PRECISE((C10/D8),1) -> 21 | E10: =+_xlfn.CEILING.PRECISE((C10/E8),1) -> 18
B11: ALOJAMIENTO INCLUYE DESAYUNO, NO INCLUYE SH / IVA | C11: 57000 | D11: =+_xlfn.CEILING.PRECISE((C11/D8),1) -> 23 | E11: =+_xlfn.CEILING.PRECISE((C11/E8),1) -> 21
B12: ALOJAMIENTO INCLUYE DESAYUNO Y CENA, NO INCLUYE SH / IVA | C12: 66000 | D12: =+_xlfn.CEILING.PRECISE((C12/D8),1) -> 27 | E12: =+_xlfn.CEILING.PRECISE((C12/E8),1) -> 24
B13: ALOJAMIENTO INCLUYE DESAYUNO, ALMUERZO Y CENA, NO INCLUYE SH / IVA | C13: 75000 | D13: =+_xlfn.CEILING.PRECISE((C13/D8),1) -> 31 | E13: =+_xlfn.CEILING.PRECISE((C13/E8),1) -> 27
B15: ESPECIFICACIONES | C15: • Modernas Instalaciones recién remodeladas • 40 Habitaciones • Servicio de Televisión Satelital • Internet Wi Fi Gratuito para todos nuestros clientes • Baño Privado • Teléfono para recepción y salida de llamadas • Lavandería • Servicios de Restaurante • Recepción 24 Horas • Parqueadero • Aire Acondicionado o Ventilador • Salón de eventos & Convenciones con capacidad para 50 personas • Organización de eventos Empresariales • Ayudas Audiovisuales y Sonido • Traslados Aeropuerto Hotel Aeropuerto • Alquiler de transporte de servicio especial. Tenemos 41 habitaciones 28 con aire acondicionado. Todas nuestras habitaciones cuentan con baño privado, agua caliente, Wi Fi gratuito, televisor de 20 pulgadas, televisión por cable. Tenemos habitaciones con acomodación sencilla, Doble, triple, cuádruple y quíntuple. Contamos con Salón de eventos y Convenciones con ayudas audiovisuales. La capacidad de nuestro salón es de 50 personas aproximadamente. En nuestro Salón podemos organizar reuniones de trabajo, lanzamiento de productos, capacitaciones y otros eventos de tipo Corporativo. ADICIONAL: Alquiler de Video Beam por día: $60.000 - Refrigerios c/u $ 7.500.

Sheet MS CENTENARIO
E2: HOTEL CENTENARIO
D3: http://www.hotelesms.com/es/hoteles/cali/hotel-ms-centenario-cali-norte
E4: VOLVER AL LISTADO
C6: ACOMODACIÓN
C7: TARIFA EN PESOS | F7: RATE IN USD | I7: RATE IN EUROS
B8: RATE PER PERSON | C8: SENCILLA | D8: DOBLE | E8: TRIPLE Ó CUADRUPLE | F8: =DIVISAS!F96 -> 2496.99 | I8: =DIVISAS!H96 -> 2800.75
F9: SINGLE | G9: DOUBLE | H9: 3/4 | I9: SINGLE | J9: DOUBLE | K9: 3/4
B10: RATE WITH BREAKFAST | C10: 120000 | D10: 135000 | E10: 177000 | F10: =+_xlfn.CEILING.PRECISE((C10/F8),1) -> 49 | G10: =+_xlfn.CEILING.PRECISE((D10/F8),1) -> 55 | H10: =+_xlfn.CEILING.PRECISE((E10/F8),1) -> 71 | I10: =+_xlfn.CEILING.PRECISE((C10/I8),1) -> 43 | J10: =+_xlfn.CEILING.PRECISE((D10/I8),1) -> 49 | K10: =+_xlfn.CEILING.PRECISE((E10/I8),1) -> 64
B11: RATE WITH BREAKFAST, LUNCH AND DINNER | C11: 150000 | D11: 192000 | E11: 234001 | F11: =+_xlfn.CEILING.PRECISE((C11/F8),1) -> 61 | G11: =+_xlfn.CEILING.PRECISE((E10/F8),1) -> 71 | H11: =+_xlfn.CEILING.PRECISE((E11/F8),1) -> 94 | I11: =+_xlfn.CEILING.PRECISE((C11/I8),1) -> 54 | J11: =+_xlfn.CEILING.PRECISE((D11/I8),1) -> 69 | K11: =+_xlfn.CEILING.PRECISE((E11/I8),1) -> 84
B13: ESPECIFICACIONES | C13: HABITACIONES DISPONIBLES PARA EL EVENTO: 10 habitaciones triples, 3 habitaciones dobles y 1 habitación sencilla.
C14: Servicios Incluidos en Tarifa: • Alojamiento en cómodas habitaciones. • Iva del 16% de alojamiento. • Seguro hotelero por persona de $7.900. • Desayuno americano y alimentación dependiendo tarifa. • Conexión a Internet Wifi, banda ancha y parqueadero. | G14: Servicios NO incluidos en la tarifa: • Mini- bar • Llamadas telefónicas nacionales e internacionales. • Lavandería • Servicios no especificados en la tarifa.
C15: FORMA DE PAGO: Para la confirmación de la reserva, se requiere el 50% con veinte días de anticipación a la reserva y el otro 50% tres días antes de la llegada del grupo. Puede realizar su pago a través de nuestra Cuenta de Ahorros 829-301-045-03 de Bancolombia a Nombre de Francisco Javier Montilla Erazo. Somos Régimen Común, exentos de retención de acuerdo al artículo 207-4 numeral 3 y 4, articulo 369 numeral 2 del E.T. Favor consultar disponibilidad antes de realizar la consignación.

Sheet MS CHIPICHAPE
E2: HOTEL CHIPICHAPE
E3: http://www.hotelesms.com/es/hoteles/cali/hotel-ms-chipichape-cali-norte
E4: VOLVER AL LISTADO
C6: ACOMODACIÓN
C7: TARIFA EN PESOS | F7: RATE IN USD | I7: RATE IN EUROS
B8: RATE PER PERSON | C8: SENCILLA | D8: DOBLE | E8: TRIPLE Ó CUADRUPLE | F8: =DIVISAS!F96 -> 2496.99 | I8: =DIVISAS!H96 -> 2800.75
F9: SINGLE | G9: DOUBLE | H9: 3/4 | I9: SINGLE | J9: DOUBLE | K9: 3/4
B10: RATE WITH BREAKFAST | C10: 120000 | D10: 135000 | E10: 177000 | F10: =+_xlfn.CEILING.PRECISE((C10/F8),1) -> 49 | G10: =+_xlfn.CEILING.PRECISE((D10/F8),1) -> 55 | H10: =+_xlfn.CEILING.PRECISE((E10/F8),1) -> 71 | I10: =+_xlfn.CEILING.PRECISE((C10/I8),1) -> 43 | J10: =+_xlfn.CEILING.PRECISE((D10/I8),1) -> 49 | K10: =+_xlfn.CEILING.PRECISE((E10/I8),1) -> 64
B11: RATE WITH BREAKFAST, LUNCH AND DINNER | C11: 150000 | D11: 192000 | E11: 234001 | F11: =+_xlfn.CEILING.PRECISE((C11/F8),1) -> 61 | G11: =+_xlfn.CEILING.PRECISE((E10/F8),1) -> 71 | H11: =+_xlfn.CEILING.PRECISE((E11/F8),1) -> 94 | I11: =+_xlfn.CEILING.PRECISE((C11/I8),1) -> 54 | J11: =+_xlfn.CEILING.PRECISE((D11/I8),1) -> 69 | K11: =+_xlfn.CEILING.PRECISE((E11/I8),1) -> 84
B13: ESPECIFICACIONES | C13: HABITACIONES DISPONIBLES PARA EL EVENTO: 10 habitaciones dobles y 8 habitaciones triples.
C14: Servicios Incluidos en Tarifa: • Alojamiento en cómodas habitaciones. • Iva del 16% de alojamiento. • Seguro hotelero por persona de $7.900. • Desayuno americano y alimentación dependiendo tarifa. • Conexión a Internet Wifi, banda ancha y parqueadero. | G14: Servicios NO incluidos en la tarifa: • Mini- bar • Llamadas telefónicas nacionales e internacionales. • Lavandería • Servicios no especificados en la tarifa.
C15: FORMA DE PAGO: Para la confirmación de la reserva, se requiere el 50% con veinte días de anticipación a la reserva y el otro 50% tres días antes de la llegada del grupo. DAVIVIENDA: Cuernta corriente N°. 015969999745 - HOTELES MS SAS. BANCOLOMBIA: Cuernta corriente N°. 82954707400 - HOTELES MS SAS. Favor consultar disponibilidad antes de realizar la consignación.

Sheet METROPOLIS PLAZA
E2: HOTEL METRÓPOLIS PLAZA - CALI
E3: http://www.booking.com/hotel/co/metropolis-plaza-cali.es.html
E4: VOLVER AL LISTADO
C6: ACOMODACIÓN
C7: TARIFA EN PESOS | F7: RATE IN USD | I7: RATE IN EUROS
B8: RATE PER PERSON | C8: SENCILLA | D8: DOBLE | E8: TRIPLE Ó CUADRUPLE | F8: =DIVISAS!F96 -> 2496.99 | I8: =DIVISAS!H96 -> 2800.75
F9: SINGLE | G9: DOUBLE | H9: 3/4 | I9: SINGLE | J9: DOUBLE | K9: 3/4
B10: RATE WITH BREAKFAST | C10: 90000 | D10: 55000 | E10: 50000 | F10: =+_xlfn.CEILING.PRECISE((C10/F8),1) -> 37 | G10: =+_xlfn.CEILING.PRECISE((D10/F8),1) -> 23 | H10: =+_xlfn.CEILING.PRECISE((E10/F8),1) -> 21 | I10: =+_xlfn.CEILING.PRECISE((C10/I8),1) -> 33 | J10: =+_xlfn.CEILING.PRECISE((D10/I8),1) -> 20 | K10: =+_xlfn.CEILING.PRECISE((E10/I8),1) -> 18
B11: RATE WITH BREAKFAST AND DINNER | C11: 100000 | D11: 65000 | E11: 60000 | F11: =+_xlfn.CEILING.PRECISE((C11/F8),1) -> 41 | G11: =+_xlfn.CEILING.PRECISE((E10/F8),1) -> 21 | H11: =+_xlfn.CEILING.PRECISE((E11/F8),1) -> 25 | I11: =+_xlfn.CEILING.PRECISE((C11/I8),1) -> 36 | J11: =+_xlfn.CEILING.PRECISE((D11/I8),1) -> 24 | K11: =+_xlfn.CEILING.PRECISE((E11/I8),1) -> 22
B12: RATE WITH BREAKFAST, LUNCH AND DINNER | C12: 110000 | D12: 75000 | E12: 70000 | F12: =+_xlfn.CEILING.PRECISE((C12/F8),1) -> 45 | G12: =+_xlfn.CEILING.PRECISE((D12/F8),1) -> 31 | H12: =+_xlfn.CEILING.PRECISE((E12/F8),1) -> 29 | I12: =+_xlfn.CEILING.PRECISE((C12/I8),1) -> 40 | J12: =+_xlfn.CEILING.PRECISE((D12/I8),1) -> 27 | K12: =+_xlfn.CEILING.PRECISE((E12/I8),1) -> 25
B14: ESPECIFICACIONES | C14: SERVICIOS INCLUIDOS E LA TARIFA: • Desayuno Buffet en el restaurante del Hotel • Iva del 16% • Seguro hotelero por persona de $6.000. • Llamadas locales * Piscina. • Internet Wi-Fi * Parqueadero. | G14: SERVICIOS NO INCLUIDOS E LA TARIFA: • Llamadas a larga distancia e internacionales • Mini- bar • Lavandería • Servicios no especificados en la cotización
C15: FORMA DE PAGO: Tarjetas de Crédito: Visa, Master Card, American Express, Diners.
C16: POLÍTICA DE CANCELACIÓN DE RESERVAS: Toda cancelación de reservas debe ser solicitada por escrito en un tiempo mínimo de 24 horas antes de la llegada del huésped. De lo contrario se cobrará el valor de la primera noche de alojamiento.
C17: POLÍTICA DE NO SHOW: Todo huésped con reserva confirmada que no llegue al hotel el día previsto se considera No Show y la empresa deberá cancelar al hotel el 100% del valor de la primera noche. El sistema automáticamente cancela la reserva y en caso de que ésta necesite ser reactivada se deberá solicitar una nueva reserva, que estará sujeta a la disponibilidad del Hotel.
C18: POLÍTICA DE NO CHECK OUT : El no check out se determina cuando un huésped no libera la habitación en la fecha establecida en su reserva. Como política general, el huésped debe entregar la habitación al vencimiento del contrato de hospedaje, (esta política aplica cuando el Hotel se encuentre en alta ocupación).

Sheet HOTEL CALI PLAZA
E2: HOTEL CALI PLAZA
G3: http://caliplaza.com/
B4: VOLVER AL LISTADO
C6: ACOMODACIÓN
C7: TARIFA EN PESOS | F7: TARIFA EN DOLARES | I7: TARIFA EN EUROS
B8: TARIFA POR PERSONA | C8: SENCILLA | D8: DOBLE | E8: TRIPLE Ó CUADRUPLE | F8: =DIVISAS!F96 -> 2496.99 | I8: =DIVISAS!H96 -> 2800.75
F9: SENCILLA | G9: DOBLE | H9: TRIPLE Ó CUADRUPLE | I9: SENCILLA | J9: DOBLE | K9: TRIPLE Ó CUADRUPLE
B10: RATE WITH BREAKFAST | C10: 110000 | D10: 130000 | E10: 117000 | F10: =+_xlfn.CEILING.PRECISE((C10/F8),1) -> 45 | G10: =+_xlfn.CEILING.PRECISE((D10/F8),1) -> 53 | H10: =+_xlfn.CEILING.PRECISE((E10/F8),1) -> 47 | I10: =+_xlfn.CEILING.PRECISE((C10/I8),1) -> 40 | J10: =+_xlfn.CEILING.PRECISE((D10/I8),1) -> 47 | K10: =+_xlfn.CEILING.PRECISE((E10/I8),1) -> 42
B11: RATE WITH BREAKFAST AND DINNER | C11: 120000 | D11: 150000 | E11: 195000 | F11: =+_xlfn.CEILING.PRECISE((C11/F8),1) -> 49 | G11: =+_xlfn.CEILING.PRECISE((D11/F8),1) -> 61 | H11: =+_xlfn.CEILING.PRECISE((E11/F8),1) -> 79 | I11: =+_xlfn.CEILING.PRECISE((C11/I8),1) -> 43 | J11: =+_xlfn.CEILING.PRECISE((D11/I8),1) -> 54 | K11: =+_xlfn.CEILING.PRECISE((E11/I8),1) -> 70
B12: RATE WITH BREAKFAST, LUNCH AND DINNER | C12: 130000 | D12: 170000 | E12: 225000 | F12: =+_xlfn.CEILING.PRECISE((C12/F8),1) -> 53 | G12: =+_xlfn.CEILING.PRECISE((D12/F8),1) -> 69 | H12: =+_xlfn.CEILING.PRECISE((E12/F8),1) -> 91 | I12: =+_xlfn.CEILING.PRECISE((C12/I8),1) -> 47 | J12: =+_xlfn.CEILING.PRECISE((D12/I8),1) -> 61 | K12: =+_xlfn.CEILING.PRECISE((E12/I8),1) -> 81
B14: ESPECIFICACIONES | C14: SERVICIOS INCLUIDOS E LA TARIFA: Iva del 16%; seguro hotelero, internet cableado y WI-FI, llamadas telefónicas locales ilimitadas, zona húmedas (turco y jacuzzi), emergencias médicas, parqueadero. LAS TARIFAS NO INCLUYEN OTROS SERVICIOS NO ESPECIFICADOS
C15: El Hotel Cali Plaza ofrece: • 15 habitaciones: 5 estándar y 8 superior, amplias y elegantes que invitan al descanso. • Lencería de lujo de 250 hilos. • Amenities para el cuidado personal. • Conexión WiFi de alta velocidad gratuita. • Aire acondicionado tipo Mini Split. • Televisión por cable con LCD de 42.” • Cajilla de seguridad electrónica. • Servicio de lavandería. • Llamadas telefónicas locales ilimitadas. • Circuito cerrado de televisión. • Parqueadero gratuito. • Cafetería. Las habitaciones ofrecidas están sujetas a la disponibilidad que presente el hotel en el momento de solicitar la reserva. Las reservaciones podrán ser solicitadas por vía telefónica o email y deberán ser reconfirmadas por escrito informándonos el nombre y apellidos de cliente, fecha de llegada y salida, nombre completo persona con número de contacto de quien hace la reserva. FORMA DE PAGO: Las reservaciones pueden ser canceladas en efectivo (pesos Colombianos); tarjeta débito, crédito, visa, master card, american express. Con el fin de garantizar las habitaciones, deberán realizar un anticipo por el valor de la primera noche del total de las habitaciones reservadas, con dos (2) días de anterioridad y para cancelar o modificar el número de habitaciones deberán hacerse con (3) días previos a la llegada. Toda reserva se conservara hasta las 12 de la noche del día de la llegada. Si el cliente no se presenta en la fecha prevista se considerara como No Shows y deberá pagar al hotel el valor total a la primera noche.

Sheet HOTEL STANCIA
F2: HOTEL STANCIA SPIWACK
F3: http://www.stancia.spiwak.com/
F4: VOLVER AL INICIO
C6: ACOMODACIÓN
C7: TARIFA EN PESOS | G7: RATE IN USD | K7: RATE IN EUROS
B8: TARIFA POR PERSONA | C8: ESTÁNDAR ONE BED | D8: ESTÁNDAR DOUBLE BED | E8: SUPERIOR | F8: JUNIOR SUITE | G8: =DIVISAS!F96 -> 2496.99 | K8: =DIVISAS!H96 -> 2800.75
G9: ESTÁNDAR ONE BED | H9: DOBLE | I9: TRIPLE Ó CUADRUPLE | J9: TRIPLE Ó CUADRUPLE | K9: SENCILLA | L9: DOBLE | M9: DOBLE | N9: TRIPLE Ó CUADRUPLE
B10: 1 PAX | C10: 134000 | D10: 134000 | E10: 148000 | F10: 161000 | G10: =+_xlfn.CEILING.PRECISE((C10/G8),1) -> 54 | H10: =+_xlfn.CEILING.PRECISE((D10/G8),1) -> 54 | I10: =+_xlfn.CEILING.PRECISE((E10/G8),1) -> 60 | J10: =+_xlfn.CEILING.PRECISE((F10/G8),1) -> 65 | K10: =+_xlfn.CEILING.PRECISE((C10/K8),1) -> 48 | L10: =+_xlfn.CEILING.PRECISE((D10/K8),1) -> 48 | M10: =+_xlfn.CEILING.PRECISE((E10/K8),1) -> 53 | N10: =+_xlfn.CEILING.PRECISE((F10/K8),1) -> 58
B11: ADITIONAL | C11: 25000 | D11: 25000 | E11: 25000 | F11: 25000 | G11: =+_xlfn.CEILING.PRECISE((C11/G8),1) -> 11 | H11: =+_xlfn.CEILING.PRECISE((D11/G8),1) -> 11 | I11: =+_xlfn.CEILING.PRECISE((E11/G8),1) -> 11 | J11: =+_xlfn.CEILING.PRECISE((F11/G8),1) -> 11 | K11: =+_xlfn.CEILING.PRECISE((C11/K8),1) -> 9 | L11: =+_xlfn.CEILING.PRECISE((D11/K8),1) -> 9 | M11: =+_xlfn.CEILING.PRECISE((E11/K8),1) -> 9 | N11: =+_xlfn.CEILING.PRECISE((F11/K8),1) -> 9
B13: ESPECIFICACIONES | C13: ESTAS TARIFAS NO INCLUYEN IVA NI SH
C14: • GARANTIA Y FORMA DE PAGO: Esta propuesta comercial no implica reserva. Ésta se debe hacer directamente a través de su ejecutivo comercial y con la firma del acuerdo de servicios donde se estipulan las condiciones de las partes. • NO SHOW En caso de cancelación o modificación de la reserva se deberá realizar de acuerdo a lo que se estipule en las condiciones del contrato. INFORMACION IMPORTANTE PARA REALIZAR SU RESERVA EN EL HOTEL STANCIA SPIWAK: • Precios por habitación por noche, no incluye impuestos (16% sobre el valor de la habitación seleccionada), ni seguro hotelero $ 5.000 + IVA (16%) por persona por noche. • Tarifas sujetas a disponibilidad del hotel • Hora Check in: 3:00 p.m. • Hora Check out: 1:00 p.m Para nosotros usted es un aliado comercial muy importante por ello le garantizamos que somos la mejor opción en el Valle del Cauca para su empresa y le damos las gracias por preferirnos.

Sheet HOTEL DANN CALI
E2: HOTEL DANN CALI
D3: http://www.hotelesdanncali.com.co/home.html
B4: VOLVER AL LISTADO
C6: ACOMODACIÓN
C7: TARIFA EN PESOS | E7: RATE IN USD | G7: RATE IN EUROS
B8: RATE PER PERSON | C8: SENCILLA | D8: DOBLE | E8: =DIVISAS!F96 -> 2496.99 | G8: =DIVISAS!H96 -> 2800.75
E9: SINGLE | F9: DOUBLE | G9: SINGLE | H9: DOUBLE
B10: TARIFA + IMPUESTOS | C10: 160000 | D10: 80000 | E10: =+_xlfn.CEILING.PRECISE((C10/E8),1) -> 65 | F10: =+_xlfn.CEILING.PRECISE((C10/E8),1) -> 65 | G10: =+_xlfn.CEILING.PRECISE((C10/G8),1) -> 58 | H10: =+_xlfn.CEILING.PRECISE((C10/G8),1) -> 58
B12: ESPECIFICACIONES | C12: IMPUESTOS CORRESPONDIENTES AL 16% DE IVA MAS $8.500 SEGURO HOTELERO DIARIO POR PERSONA Servicios Incluidos en Tarifa: Trago de bienvenida, periódico local diario; parqueadero y zona húmeda (piscina, jacuzzi, baño turco y gimnasio) del Dann Carlton, servicio médico de emergencia. Alimentos & Bebidas: Ofrecemos Almuerzos y Cenas Buffet a $35.000= cada una por persona más IVA.
C13: CONFIRMACION Y RESERVA: Para efectuar la reserva, agradecemos se sirvan enviarnos una carta de compromiso indicando la cantidad de habitaciones requeridas con fecha de ingreso y salida. Para garantizar las mismas es necesario la cancelación de un anticipo, el cual se pactaría al momento de la negociación.

Sheet TORRE DE CALI PLAZA HOTEL
E2: TORRE DE CALI PLAZA HOTEL
I3: http://www.hoteltorredecali.com/
D4: VOLVER AL INICIO
C6: ACOMODACIÓN
C7: TARIFA EN PESOS | G7: RATE IN USD | K7: RATE IN EUROS
B8: RATE PER PERSON | C8: SENCILLA | D8: DOBLE | E8: TRIPLE | F8: CUADRUPLE | G8: =DIVISAS!F96 -> 2496.99 | K8: =DIVISAS!H96 -> 2800.75
G9: SINGLE | H9: DOUBLE | I9: TRIPLE | J9: 4 | K9: SINGLE | L9: DOUBLE | M9: TRIPLE | N9: 4
B10: TARIFA GRUPO | C10: 139900 | D10: 163800 | E10: 225980 | F10: 288160 | G10: =+_xlfn.CEILING.PRECISE((C10/G8),1) -> 57 | H10: =+_xlfn.CEILING.PRECISE((D10/G8),1) -> 66 | I10: =+_xlfn.CEILING.PRECISE((E10/G8),1) -> 91 | J10: =+_xlfn.CEILING.PRECISE((F10/G8),1) -> 116 | K10: =+_xlfn.CEILING.PRECISE((C10/G8),1) -> 57 | L10: =+_xlfn.CEILING.PRECISE((D10/K8),1) -> 59 | M10: =+_xlfn.CEILING.PRECISE((E10/K8),1) -> 81 | N10: =+_xlfn.CEILING.PRECISE((F10/K8),1) -> 103
B12: ESPECIFICACIONES | C12: AL VALOR DE ALOJAMIENTO SE LE AGREGA EL 16% DE I.V.A + $6.500 DIARIOS POR PERSONA DE SEGURO HOTELERO
C13: Sus huéspedes disfrutarán de los siguientes beneficios, incluidos en la tarifa: • Desayuno Tipo Buffet • Internet inalámbrico de cortesía en cualquier área del hotel • Asistencia Médica EMERMEDICA, disponible 24 horas en casos de emergencia. • Cajilla de Seguridad digital en la habitación. • Busisness Center • Gimnasio con máquinas para ejercicios cardiovasculares • Estación de Café en el lobby • Clases de salsa para los huéspedes todos los jueves de 7:00 a 8:00 p.m. a cargo de la reconocida Academia Swing Latino. • Parqueadero de Cortesía. • Ingreso al Mirador Panorámico piso 43 SERVICIOS ADICIONALES • Las llamadas locales tienen un costo de $160 por minuto. • Ingreso a discoteca “La Maldita Primavera” $15.000 por persona por noche • Almuerzo y cena tipo menú por $20.000 cada uno incluido el consumo.
C14: NOTA: El servicio de alimentación se prestara en salón para mayor comodidad. RESERVA Y GARANTIA DE HABITACIONES: Cada participante deberá garantizar sus reservas con tarjeta de crédito, consignación o transferencia bancaria. FORMA DE PAGO: En el momento del registro en el Hotel, se deberá hacer el pago de la totalidad de las noches de alojamiento reservadas. MODIFICACIONES Y CANCELACIONES DE RESERVAS – PAGO DE NO-SHOWS. • Sus reservas serán efectivas, una vez nosotros hayamos recibido carta de confirmación y garantía. • Aceptamos cambios hasta de un 10% del número de habitaciones reservadas. En caso de cancelación de la reserva debe hacerse por escrito: 1. No hay penalidad, 48 horas antes de la llegada de la reserva. • En caso que algún huésped no llegue en la fecha establecida y no se haya cancelado su reserva con 48 horas de antelación, se facturará el valor de la primera noche de alojamiento.

Sheet MS CIUDAD JARDÍN
E2: HOTEL MS CIUDAD JARDÍN
E3: http://www.hotelesms.com/es/hoteles/cali/hotel-ms-ciudad-jardin-sur
E4: VOLVER AL LISTADO
C6: ACOMODACIÓN
C7: TARIFA EN PESOS | F7: RATE IN USD | I7: RATE IN EUROS
B8: RATE PER PERSON | C8: SENCILLA | D8: DOBLE | E8: TRIPLE Ó CUADRUPLE | F8: =DIVISAS!F96 -> 2496.99 | I8: =DIVISAS!H96 -> 2800.75
F9: SINGLE | G9: DOUBLE | H9: 3/4 | I9: SINGLE | J9: DOUBLE | K9: 3/4
B10: TARIFA CON DESAYUNO | C10: 182300 | D10: 223938 | E10: 318345 | F10: =+_xlfn.CEILING.PRECISE((C10/F8),1) -> 74 | G10: =+_xlfn.CEILING.PRECISE((D10/F8),1) -> 90 | H10: =+_xlfn.CEILING.PRECISE((E10/F8),1) -> 128 | I10: =+_xlfn.CEILING.PRECISE((C10/I8),1) -> 66 | J10: =+_xlfn.CEILING.PRECISE((D10/I8),1) -> 80 | K10: =+_xlfn.CEILING.PRECISE((E10/I8),1) -> 114
B11: TARIFA CON TODA LA ALIMENTACIÓN | C11: 201285 | D11: 324000 | E11: 468345 | F11: =+_xlfn.CEILING.PRECISE((C11/F8),1) -> 81 | G11: =+_xlfn.CEILING.PRECISE((E10/F8),1) -> 128 | H11: =+_xlfn.CEILING.PRECISE((E11/F8),1) -> 188 | I11: =+_xlfn.CEILING.PRECISE((C11/I8),1) -> 72 | J11: =+_xlfn.CEILING.PRECISE((D11/I8),1) -> 116 | K11: =+_xlfn.CEILING.PRECISE((E11/I8),1) -> 168
B13: ESPECIFICACIONES | C13: HABITACIONES DISPONIBLES PARA EL EVENTO: 10 habitaciones dobles y 8 habitaciones triples.
C14: Servicios Incluidos en Tarifa: • Alojamiento en cómodas habitaciones. • Iva del 16% de alojamiento. • Seguro hotelero por persona de $7.900. • Desayuno americano y alimentación dependiendo tarifa. • Conexión a Internet Wifi, banda ancha y parqueadero. | G14: Servicios NO incluidos en la tarifa: • Mini- bar • Llamadas telefónicas nacionales e internacionales. • Lavandería • Servicios no especificados en la tarifa.
C15: FORMA DE PAGO: Para la confirmación de la reserva, se requiere el 50% con veinte días de anticipación a la reserva y el otro 50% tres días antes de la llegada del grupo. DAVIVIENDA: Cuernta corriente N°. 015969999745 - HOTELES MS SAS. BANCOLOMBIA: Cuernta corriente N°. 82954707400 - HOTELES MS SAS. Favor consultar disponibilidad antes de realizar la consignación.

Sheet FOUR POINTS BY SHERATON
E2: FOUR POINTS BY SHERATON
C3: http://www.starwoodhotels.com/fourpoints/index.html
B4: VOLVER AL LISTADO
C6: ACOMODACIÓN
C7: TARIFA EN PESOS
B8: RATE PER PERSON | C8: ESTANDAR (1 cama doble) | D8: SUPERIOR (2 camas dobles) | E8: JUNIOR SUITE (1 cama king size) | G8: SUITE (1 cama king size)
C9: SENCILLA | D9: DOBLE | E9: SENCILLA | F9: DOBLE | G9: SENCILLA | H9: DOBLE
B10: TARIFA EN SEMANA (De lunes a jueves) | C10: 235000 | D10: 265000 | E10: 315000 | F10: 345000 | G10: 395000 | H10: 425000
B11: TARIFA EN FIN DE SEMANA (Viernes, sábado, domingo y lunes festivos) | C11: 180000 | D11: 180000 | E11: 230000 | F11: 230000 | G11: 280000 | H11: 280000
B13: ESPECIFICACIONES | C13: Nuestros servicios son los siguientes: • 181 Habitaciones • 6 Salones que se convierte en 11 espacios para eventos con capacidades hasta de 300 personas. • 5 salas VIP. • SPA KYOTO ORIENTAL, zona húmeda: Sauna, turco, Jacuzzi, Gym Cardio. • Piscina. • Business Center. • 2 Restaurantes. Restaurante Cook ́s y Mango ́s. • Bar: Bar & Tono. • Personal especializado en todas las áreas. • Parqueadero. Descripción de los servicios incluidos: Al salir del aeropuerto ubique a nuestro conductor que le estará esperando con un aviso Con Nombre y Logo del Hotel Four Points By Sheraton Cali • Desayuno Buffet de Cortesía • Emergencias médicas - EMERMÉDICAS • Llamadas Locales • Cortesía Parqueadero • Estación de Café en el Lobby • Cortesía Internet por banda ancha. • Cortesía Sala VIP por 2 horas sujeto a disponibilidad • Room Service 24 Horas. • Cortesía Periódico disponible. • Tarjeta SPG Starwood Prefered Guest de Fidelización • Bebida de bienvenida de Cortesía • Business Center y Hemeroteca, Ubicada en el piso 8 • Gimnasio, Turco, Jacuzzi • Piscina con vista panorámica piso 12. VIGENCIA DE LAS TARIFAS, HASTA 31 DE DICIEMBRE DE 2015.TARIFA NO INCLUYE IVA (16%) NI SEGURO HOTELERO DE $6.500 POR PERSONA POR NOCHE - ALMUERZO O CENA POR VALOR DE $38.000 CON IVA INCLUIDO CONTINUA EN LA SIGUIENTE PÁGINA
E18: FOUR POINTS BY SHERATON
C19: http://www.starwoodhotels.com/fourpoints/index.html
E20: VOLVER AL INICIO
C22: ACOMODACIÓN
C23: TARIFA EN DOLARES
C24: =DIVISAS!F96 -> 2496.99
B25: TARIFA POR PERSONA | C25: ESTANDAR (1 cama doble) | D25: SUPERIOR (2 camas dobles) | E25: JUNIOR SUITE (1 cama king size) | G25: SUITE (1 cama king size)
C26: SENCILLA | D26: DOBLE | E26: SENCILLA | F26: DOBLE | G26: SENCILLA | H26: DOBLE
B27: TARIFA EN SEMANA (De lunes a jueves) | C27: =+_xlfn.CEILING.PRECISE((C10/C24),1) -> 95 | D27: =+_xlfn.CEILING.PRECISE((D10/C24),1) -> 107 | E27: =+_xlfn.CEILING.PRECISE((D10/C24),1) -> 107 | F27: =+_xlfn.CEILING.PRECISE((F10/C24),1) -> 139 | G27: =+_xlfn.CEILING.PRECISE((G10/C24),1) -> 159 | H27: =+_xlfn.CEILING.PRECISE((H10/C24),1) -> 171
B28: TARIFA EN FIN DE SEMANA (Viernes, sábado, domingo y lunes festivos) | C28: =+_xlfn.CEILING.PRECISE((C11/C24),1) -> 73 | D28: =+_xlfn.CEILING.PRECISE((D11/C24),1) -> 73 | E28: =+_xlfn.CEILING.PRECISE((E11/C24),1) -> 93 | F28: =+_xlfn.CEILING.PRECISE((F11/C24),1) -> 93 | G28: =+_xlfn.CEILING.PRECISE((G11/C24),1) -> 113 | H28: =+_xlfn.CEILING.PRECISE((H11/C24),1) -> 113
C31: ACOMODACIÓN
C32: TARIFA EN EUROS
C33: =DIVISAS!H96 -> 2800.75
B34: TARIFA POR PERSONA | C34: ESTANDAR (1 cama doble) | D34: SUPERIOR (2 camas dobles) | E34: JUNIOR SUITE (1 cama king size) | G34: SUITE (1 cama king size)
C35: SENCILLA | D35: DOBLE | E35: SENCILLA | F35: DOBLE | G35: SENCILLA | H35: DOBLE
B36: TARIFA EN SEMANA (De lunes a jueves) | C36: =+_xlfn.CEILING.PRECISE((C10/C33),1) -> 84 | D36: =+_xlfn.CEILING.PRECISE((D10/C33),1) -> 95 | E36: =+_xlfn.CEILING.PRECISE((E10/C33),1) -> 113 | F36: =+_xlfn.CEILING.PRECISE((F10/C33),1) -> 124 | G36: =+_xlfn.CEILING.PRECISE((G10/C33),1) -> 142 | H36: =+_xlfn.CEILING.PRECISE((H10/C33),1) -> 152
B37: TARIFA EN FIN DE SEMANA (Viernes, sábado, domingo y lunes festivos) | C37: =+_xlfn.CEILING.PRECISE((C11/C33),1) -> 65 | D37: =+_xlfn.CEILING.PRECISE((D11/C33),1) -> 65 | E37: =+_xlfn.CEILING.PRECISE((E11/C33),1) -> 83 | F37: =+_xlfn.CEILING.PRECISE((F11/C33),1) -> 83 | G37: =+_xlfn.CEILING.PRECISE((G11/C33),1) -> 100 | H37: =+_xlfn.CEILING.PRECISE((H11/C33),1) -> 100

Sheet HOTEL MOVICH
G2: HOTEL MOVICH
D3: https://movichhotels.com/
G4: VOLVER AL LISTADO
C6: ACOMODACIÓN
C7: TARIFA EN PESOS | E7: RATE IN USD | G7: RATE IN EUROS
B8: TARIFA POR PERSONA | C8: SENCILLA | D8: DOBLE | E8: =DIVISAS!F96 -> 2496.99 | G8: =DIVISAS!H96 -> 2800.75
E9: SINGLE | F9: DOUBLE | G9: SINGLE | H9: DOUBLE
B10: OPCIÓN 1 | C10: 292440 | D10: 377240 | E10: =+_xlfn.CEILING.PRECISE((C10/E8),1) -> 118 | F10: =+_xlfn.CEILING.PRECISE((D10/E8),1) -> 152 | G10: =+_xlfn.CEILING.PRECISE((D10/G8),1) -> 135 | H10: =+_xlfn.CEILING.PRECISE((D10/G8),1) -> 135
B11: OPCIÓN 2 | C11: 267440 | D11: 302240 | E11: =+_xlfn.CEILING.PRECISE((C11/E8),1) -> 108 | F11: =+_xlfn.CEILING.PRECISE((D11/E8),1) -> 122 | G11: =+_xlfn.CEILING.PRECISE((D11/G8),1) -> 108 | H11: =+_xlfn.CEILING.PRECISE((D11/G8),1) -> 108
B12: OPCIÓN 3 | C12: 209000 | D12: 239999 | E12: =+_xlfn.CEILING.PRECISE((C12/E8),1) -> 84 | F12: =+_xlfn.CEILING.PRECISE((D12/E8),1) -> 97 | G12: =+_xlfn.CEILING.PRECISE((D12/G8),1) -> 86 | H12: =+_xlfn.CEILING.PRECISE((D12/G8),1) -> 86
B14: ESPECIFICACIONES | C14: ESTAS TARIFAS NO INCLUYEN IVA NI SH OPCION1 - INCLUYE • Alojamiento con impuestos • Desayuno, almuerzo y cena • Servicio personalizado • Acceso a Zonas húmedas (Turco) y gimnasio • Habitaciones con tina e hidromasaje • Wi fi ilimitado en todas las habitaciones y áreas del hotel • Habitaciones muy confortables, camas de ancho 1.40 en habitaciones dobles y de 1.60 en habitaciones sencillas. OPCION 2 - INCLUYE • Alojamiento con impuestos • Desayuno y una comida • Servicio personalizado • Acceso a Zonas húmedas (Turco) y gimnasio • Habitaciones con tina e hidromasaje • Wi fi ilimitado en todas las habitaciones y áreas del hotel • Habitaciones muy confortables, camas de ancho 1.40 en habitaciones dobles y de 1.60 en habitaciones sencillas. OPCION 3 - INCLUYE • Alojamiento • Desayuno • Servicio personalizado • Acceso a Zonas húmedas (Turco) y gimnasio • Habitaciones con tina e hidromasaje• Wi fi ilimitado en todas las habitaciones y áreas del hotel • Habitaciones muy confortables, camas de ancho 1.40 en habitaciones dobles y de 1.60 en habitaciones sencillas. 1. Esta oferta comercial no implica reserva. Ésta se debe hacer directamente a través de su ejecutivo comercial con la firma del contrato y el pago del 50% al confirmar el evento, el restante 50% al Check out. Las consignaciones deberán realizarse a la siguiente cuenta: Entidad: Tipo Cuenta: Nro. Cuenta Beneficiario: NIT: Helm Bank Corriente 012-41225-0 Global Operadora Hotelera S.A.S 900.521.807-7 La consignación se debe hacer exclusivamente en Formato Único de Recaudo diligenciando los campos así: Cliente: RECAUDO GLOBAL OPERADORA HOTELERA S.A.S Código de Convenio 8312 GOH SAS Hotel Casa Alférez NIT del cliente que consigna Teléfono de contacto del cliente El Horario de Check in es a las 3pm y Check out a la 1pm Las reservas de habitaciones que se tengan reservadas y que No sean canceladas mínimo con 2 días de anterioridad, serán cobradas como NO SHOW.

Sheet HOTEL DANN CARLTON CALI
E2: HOTEL DANN CARLTON CALI
D3: http://www.hotelesdanncali.com.co/home.html
B4: VOLVER AL LISTADO
C6: ACOMODACIÓN
C7: TARIFA EN PESOS | E7: RATE IN USD | G7: RATE IN EUROS
B8: TARIFA POR PERSONA | C8: SENCILLA | D8: DOBLE | E8: =DIVISAS!F96 -> 2496.99 | G8: =DIVISAS!H96 -> 2800.75
E9: SENCILLA | F9: DOBLE | G9: SENCILLA | H9: DOBLE
B10: TARIFA + IMPUESTOS | C10: 130000 | D10: 260000 | E10: =+_xlfn.CEILING.PRECISE((C10/E8),1) -> 53 | F10: =+_xlfn.CEILING.PRECISE((D10/E8),1) -> 105 | G10: =+_xlfn.CEILING.PRECISE((C10/G8),1) -> 47 | H10: =+_xlfn.CEILING.PRECISE((D10/G8),1) -> 93
B12: ESPECIFICACIONES | C12: IMPUESTOS CORRESPONDIENTES AL 16% DE IVA MAS $8.500 SEGURO HOTELERO DIARIO POR PERSONA Servicios Incluidos en Tarifa: Trago de bienvenida, periódico local diario; parqueadero y zona húmeda (piscina, jacuzzi, baño turco y gimnasio) del Dann Carlton, servicio médico de emergencia. Alimentos & Bebidas: Ofrecemos Almuerzos y Cenas Buffet a $35.000= cada una por persona más IVA.
C13: CONFIRMACION Y RESERVA: Para efectuar la reserva, agradecemos se sirvan enviarnos una carta de compromiso indicando la cantidad de habitaciones requeridas con fecha de ingreso y salida. Para garantizar las mismas es necesario la cancelación de un anticipo, el cual se pactaría al momento de la negociación.

Sheet HOTEL SPIWAK
E2: HOTEL STANCIA SPIWACK
E3: http://www.spiwak.com/
E4: VOLVER AL INICIO
C6: ACOMODACIÓN
C7: TARIFA EN PESOS | E7: RATE IN USD | G7: RATE IN EUROS
B8: TARIFA POR PERSONA | C8: 1 PAX -2 PAX | D8: ADICIONAL | E8: =DIVISAS!F96 -> 2496.99 | G8: =DIVISAS!H96 -> 2800.75
E9: SINGLE | F9: DOUBLE | G9: SINGLE | H9: DOUBLE
B10: LUXURY JUNIOR KING SUITES | C10: 215000 | D10: 38500 | E10: =+_xlfn.CEILING.PRECISE((C10/E8),1) -> 87 | F10: =+_xlfn.CEILING.PRECISE((D10/E8),1) -> 16 | G10: =+_xlfn.CEILING.PRECISE((C10/G8),1) -> 77 | H10: =+_xlfn.CEILING.PRECISE((D10/G8),1) -> 14
B11: LUXURY TWIN SUITES | C11: 215000 | D11: 38500 | E11: =+_xlfn.CEILING.PRECISE((C11/E8),1) -> 87 | F11: =+_xlfn.CEILING.PRECISE((D11/E8),1) -> 16 | G11: =+_xlfn.CEILING.PRECISE((C11/G8),1) -> 77 | H11: =+_xlfn.CEILING.PRECISE((D11/G8),1) -> 14
B12: MASTER SUITES | C12: 232000 | D12: 38500 | E12: =+_xlfn.CEILING.PRECISE((C12/E8),1) -> 93 | F12: =+_xlfn.CEILING.PRECISE((D12/E8),1) -> 16 | G12: =+_xlfn.CEILING.PRECISE((C12/G8),1) -> 83 | H12: =+_xlfn.CEILING.PRECISE((D12/G8),1) -> 14
B13: LUXURY KING / TWIN SUITE JACUZZI | C13: 249000 | D13: 38500 | E13: =+_xlfn.CEILING.PRECISE((C13/E8),1) -> 100 | F13: =+_xlfn.CEILING.PRECISE((D13/E8),1) -> 16 | G13: =+_xlfn.CEILING.PRECISE((C13/G8),1) -> 89 | H13: =+_xlfn.CEILING.PRECISE((D13/G8),1) -> 14
B14: LUXURY KING / TWIN SUITE BALCON | C14: 279500 | D14: 38500 | E14: =+_xlfn.CEILING.PRECISE((C14/E8),1) -> 112 | F14: =+_xlfn.CEILING.PRECISE((D14/E8),1) -> 16 | G14: =+_xlfn.CEILING.PRECISE((C14/G8),1) -> 100 | H14: =+_xlfn.CEILING.PRECISE((D14/G8),1) -> 14
B15: SUPER MASTER SUITES | C15: 322500 | D15: 38500 | E15: =+_xlfn.CEILING.PRECISE((C15/E8),1) -> 130 | F15: =+_xlfn.CEILING.PRECISE((D15/E8),1) -> 16 | G15: =+_xlfn.CEILING.PRECISE((C15/G8),1) -> 116 | H15: =+_xlfn.CEILING.PRECISE((D15/G8),1) -> 14
B16: LUXURY PLUSS SUITE | C16: 365500 | D16: 38500 | E16: =+_xlfn.CEILING.PRECISE((C16/E8),1) -> 147 | F16: =+_xlfn.CEILING.PRECISE((D16/E8),1) -> 16 | G16: =+_xlfn.CEILING.PRECISE((C16/G8),1) -> 131 | H16: =+_xlfn.CEILING.PRECISE((D16/G8),1) -> 14
B17: SUPER MASTER SUITES BALCON | C17: 408500 | D17: 38500 | E17: =+_xlfn.CEILING.PRECISE((C17/E8),1) -> 164 | F17: =+_xlfn.CEILING.PRECISE((D17/E8),1) -> 16 | G17: =+_xlfn.CEILING.PRECISE((C17/G8),1) -> 146 | H17: =+_xlfn.CEILING.PRECISE((D17/G8),1) -> 14
B18: SUPER MASTER SUITES VIP | C18: 645000 | D18: 38500 | E18: =+_xlfn.CEILING.PRECISE((C18/E8),1) -> 259 | F18: =+_xlfn.CEILING.PRECISE((D18/E8),1) -> 16 | G18: =+_xlfn.CEILING.PRECISE((C18/G8),1) -> 231 | H18: =+_xlfn.CEILING.PRECISE((D18/G8),1) -> 14
B19: PRESIDENCIAL | C19: 860000 | D19: 38500 | E19: =+_xlfn.CEILING.PRECISE((C19/E8),1) -> 345 | F19: =+_xlfn.CEILING.PRECISE((D19/E8),1) -> 16 | G19: =+_xlfn.CEILING.PRECISE((C19/G8),1) -> 308 | H19: =+_xlfn.CEILING.PRECISE((D19/G8),1) -> 14
B21: ESPECIFICACIONES | C21: ESTAS TARIFAS NO INCLUYEN IVA NI SH CONTINUA EN LA SIGUIENTE PÁGINA
B25: ESPECIFICACIONES | C25: INFORMACION IMPORTANTE PARA REALIZAR SU RESERVA: Precios por habitación por noche, no incluye impuestos (16% sobre el valor de la habitación seleccionada), ni seguro hotelero $ 8.900 + IVA (16%) por persona por noche. Tarifas sujetas a disponibilidad del hotel Niños Menores de 12 años de cortesía compartiendo habitación con los padres, solo pagan seguro hotelero. Hora Check in: 3:00 p.m. Hora Check out: 1:00 p.m. Cortesía del Hotel El hotel ofrece como cortesía (complementary) (1) una habitación Luxury King Suite en acomodación doble por cada 25 habitaciones reconfirmadas y garantizadas por el grupo. GARANTIA Y FORMA DE PAGO: Esta propuesta comercial no implica reserva. Ésta se debe hacer directamente a través de su ejecutivo comercial y con la firma del acuerdo de servicios donde se estipulan las condiciones de las partes. NO SHOW En caso de cancelación o modificación de la reserva se deberá realizar de acuerdo a lo que se estipule en las condiciones del contrato.
